Workbook

Sheet 01_Aufwand_Kosten
C4: Modul M 04: Deckungsbeitragsrechnung
C6: 1. Aufwand und Kosten
C7: Die Herstellung von Produkten und das Erbringen von Dienstleistungen ist - wie wir wissen - stets mit AUFWAND
C8: verbunden. Als Aufwand bezeichnen wir Kontext zur Leistungserstellung und -verwertung
D9: a) den Werteverzehr (Verbrauch) von Gütern und Dienstleistungen (wie Materialaufwand, Personalaufwand,
D10: Abschreibungen.) sowie
D11: b) den Abgang von Vermögenswerten (Geld- und Sachvermögen), ohne dass dies immer mit Veränderungen
D12: im Geldvermögen zu tun haben muss (wie Wertminderungen bei Vermögensgegenständen, zu zahlende
D13: Zinsen, bestimmte Steuern u. a.).
C14: Sofern dieser Aufwand im eigentlichen Betriebsprozess des Unternehmens mit gewisser Regelmäßigkeit (ordent-
C15: lich) verursacht wird, bezeichnen wir diesen Aufwand als Zweckaufwand und den Geldausdruck dieses Zweck-
C16: aufwandes als Grundkosten. Grundlage für den Ausweis des Zweckaufwandes bilden die Daten der Buchführung.
C17: Ein aus betriebswirtschaftlicher Sicht einleuchtendes Anliegen des Unternehmers besteht immer darin, zu er-
C18: reichen, dass die Preise, die Kunden für fertige Produkte bzw. Leistungen zahlen sollen, mindestens die im Be-
C19: triebsprozess verursachten Kosten decken müssen. Dabei gilt es, zwei Sachverhalte zu beachten bzw. zu unter-
C20: scheiden: Auf der einen Seite würden es Kunden sicher nicht akzeptieren, wenn in einem Angebotspreis
C21: Aufwendungen enthalten sind, die nicht im Betriebsprozess angefallen sind. Dies würde sog. neutrale (betriebs-
C22: fremde, außerordentliche und periodenfremde) Aufwendungen betreffen.
C23: Auf der anderen Seite müssen Kunden akzeptieren, wenn in den Angebotspreis - außer Grundkosten - auch weite--
C24: re, mit dem Betriebsprozess verbundene Aufwendungen auf kalkulatorische Art und Weise eingerechnet werden.
C25: Derartige kalkulatorische Kosten sind zum Beispiel kalkulatorische Abschreibungen, kalkulatorische Zinsen (als
C26: sog. Anderskosten) sowie - bei Personenunternehmen - der kalkulatorische Unternehmerlohn (als Zusatzkosten).
C27: Zwischen AUFWAND und KOSTEN besteht somit folgender Zusammenhang:
C40: Mit der Klärung der Frage, welche Aufwendungen in die Kalkulation eines Angebots- bzw. Verkaufspreises ein-
C41: zurechnen sind, um einen vollen Kostenersatz abzusichern, sind aber noch nicht alle Probleme aufgedeckt, die es
C42: aus betriebswirtschaftlicher Sicht zu beachten gilt. Betrachten wir dazu das Beispiel eines Ein-Produkt-Unter-
C43: nehmens:
C44: Der Unternehmer G, Gründer und Inhaber des Unternehmens "E-Scooter for You", hat im Zeitraum T mit
C45: seinen Mitarbeitern insgesamt | G45: x = | H45: 25 | I45: Stck. neue E-Scooter hergestellt.
C46: Dabei sind je Produkt folgende Einzelkosten (Materialkosten, bezogene Teile, Löhne u. a.) angefallen:
D47: kv = | E47: 280 | F47: EUR/Stck.
C48: Im Zeitraum T sind im Unternehmen weitere Kosten (wie Gehälter, Kommunikationskosten, Versicherungs-
C49: beiträge und dgl.) in Höhe von Kf = | I49: 9500 | J49: EUR angefallen.
C50: Wenn dieser Betrag auf die angegebene Menge der fertiggestellten Produkte umgelegt wird, würde je Produkt
C51: ein Betrag von | E51: =I49/H45 -> 380 | F51: EUR/Stck. zu verrechnen sein.
C52: Um mit dem Verkauf der Produkte an Kunden wenigstens Kostendeckung zu erreichen, müsste der Preis bei
D53: P = sk = | E53: =E47+E51 -> 660 | F53: EUR/Stck. liegen. Die Gesamtkosten würden dann bei | L53: K = sk * x = | M53: 9500 | N53: EUR
C54: liegen. Soweit, so gut. Nun zum Problem (siehe Folge-Blatt!).

Sheet 02_Fixe_variable_Kosten
C4: Modul M 04: Deckungsbeitragsrechnung
C6: 2. Fixe und variable Kosten
C7: Aus der Beziehung "Kosten K = Stückselbstkosten sk * Menge x" könnte man - aus rein mathematischer Sicht - ab-
C8: leiten, dass die Kosten K den Wert K = 0 annehmen können, wenn die Produktionsmenge den Wert x = 0 beträgt.
C9: Jeder weiß, dass dies in der Praxis nicht der Fall ist und nicht der Fall sein kann, denn jedwede Leistungserstellung.
C10: gleich in welchem Unternehmen und unabhängig von der Unternehmensgröße, bedingt bestimmte Aufwendungen,
C11: die als Kosten der Betriebsbereitschaft zu interpretieren sind und die ihrer Natur nach Fixkosten darstellen, d. h.
C12: es gilt: Fixkosten Kf = Kf(x) = const.
C13: Diese Kosten fallen somit auch dann an, wenn keine direkte Leistungserstellung erfolgt: Kf (x) = Kf bei x = 0.
C14: Welche existenziellen Brisanz hinter diesem Sachverhalt steckt, ist nicht nur den Unternehmern, sondern darüber-
C15: hinaus auch den Arbeitnehmern im jeweiligen Unternehmen, den Politikern und auch breiten Kreisen der Öffent-
C16: lichkeit in Zeiten des "Lockdowns" der Wirtschaft in der Coronakrise deutlich geworden: Unternehmen durften
C17: nicht ihrer Geschäftstätigkeit nachgehen, Geschäfte geschlossen, aber bestimmte Kosten liefen weiter, und plötz-
C18: lich der Ruf nach staatlichen Unterstützungsmaßnahmen, um wenigstens die Fixkosten annähernd decken zu können!
C19: (Hier keine weiteren Kommentare zu diesen Geschehnissen, außer "Betriebswirtschaftliche Kenntnisse sind nie
C20: von Schaden!").
C21: Variable Kosten (wie Materialverbrauch, Löhne und dgl.) sind in der Regel proportionale Kosten, d. h. sie verhalten
C22: sich linear zur Produktionsmenge x: Kv [EUR] = kv [EUR/Stck.] * x [Stck.].
C23: Schlussfolgerung:
C24: Statt einer Kostengleichung mit "gewaltsam proportionalisierten Fixkosten" der Form K = sk * x sollte stets
C25: die die Kostengleichung der Form K = Kf + kv * x gewählt werden!
C26: Die Unterschiede zwischen beiden Kostengleichungen gehen - bezogen auf das Zahlenbeispiel - aus folgender Grafik
C27: hervor:
C45: Aus dem Diagramm kann abgelesen werden, dass die Kosten K nach beiden Gleichungen nur im Punkt x = 25 [Stck.]
C46: übereinstimmen!
C47: Bei x < 25 [Stck.] werden den potenziellen Kunden "zu wenig" Kosten und bei x > 25 [Stck,] werden "zu viel" Kosten
C48: in Ansatz gebracht.
C49: Die Kostengleichung der Form K = Kf + kv * x bildet die kostenrechnerische Grundlage sowohl der hier im Weiteren
C50: zu behandelnden Deckungsbeitragsrechnung als auch weiterer Bewertungs- und Entscheidungsrechnungen wie
C51: die Break-even-Analyse, die Engpassanalyse, die Make-or-buy-Entscheidung u. a.

Sheet 03_DB_Rechnung
C4: Modul M 04: Deckungsbeitragsrechnung
C6: 3. Grundschema und Formeln der DB-Rechnung
C7: Die Ableitung der inhaltlichen Bestimmung sowie der Berechnung eines Deckungsbeitrages DB geht von folgenden
C8: Überlegungen aus:
C9: Auf der einen Seite liegt auf der Hand, dass Unternehmen immer bestimmte direkt zurechenbare Aufwendungen
C10: tätigen müssen, um Produkte bzw. Leistungen zu erstellen, die Umsatzerlöse bringen sollen. Insofern gibt es
C11: offenbar immer eine nachweisbare Abhängigkeit zwischen den erzielten Umsatzerlösen (Symbol UE [EUR]) und
C12: den diesen Erlösen direkt zurechenbaren Aufwendungen, deren Geldausdruck die variablen Kosten (Symbol Kv [EUR])
C13: sind.
C14: Auf der anderen Seite wird im Unternehmensprozess immer angestrebt, dass darüberhinaus mit den Umsatzerlösen
C15: nicht nur die anfallenden fixen Kosten (Symbol Kf [EUR]) abgedeckt werden, sondern auch ein Überschuss (als Gewinn
C16: (Symbol G [EUR]) erwirtschaftet wird. Dies bedeutet, dass Unternehmen im Umsatzprozess eine solche Differenz
C17: zwischen den Umsatzerlösen UE und den variablen Kosten Kv erreichen müssen, dass damit zumindest die Fixkosten Kf
C18: und - wenn es gut geht - auch ein Gewinn G abgedeckt werden kann.
C19: Diese anzustrebende Differenz wird als Deckungsbeitrag DB [EUR] bezeichnet (siehe nachstehende Grafik).
C39: Formelmäßig gilt somit:
F40: DB = UE ./. Kv | I40: bzw. | J40: G = DB ./. Kf
C42: Wird der Deckungsbeitrag DB ins prozentuale Verhältnis zu den Umsatzerlösen gebracht, erhält man eine Größe, die
C43: Deckungsbeitragssatz (Symbol DBU [%]) genannt wird:
C48: Hierin ist a [%] der durchschnittliche prozentuale Anteil der variablen Kosten Kv an den Umsatzerlöse UE.
C50: Im weiteren sollen nun Aufgaben der einstufigen und mehrstufigen Deckungsbeitragsrechnung bearbeitet werden.

Sheet Blanko1 (hidden)

Sheet 04_DB_Beispiel1_A
C4: Modul M 04: Deckungsbeitragsrechnung
C6: 4. Einstufige Deckungsbeitragsrechnung: Fallbeispiel
C8: Ein neu gegründetes Unternehmen beginnt seinen Geschäftsbetrieb mit der Herstellung der Produkte A, B und C.
C9: Für das I. Quartal des neuen Geschäftsjahres liegen die nachstehend aufgeführten Daten vor.
C11: Aufgabe:
C12: Ermitteln Sie aus diesen Daten den Deckungsbeitrag DB (je Produkt und gesamt), den Deckungsbeitragssatz DBU
C13: und im Weiteren den Gewinn (als Betriebsergebnis) im I. Quartal!
C15: Produkte | D15: A | F15: B | H15: C | J15: gesamt
C16: Position | D16: EUR | E16: % | F16: EUR | G16: % | H16: EUR | I16: % | J16: EUR | K16: %
C17: Erlöse aus Umsatz (UE) | D17: 22250 | E17: 100 | F17: 24100 | G17: 100 | H17: 20960 | I17: 100 | K17: 100
C18: variable Kosten (Kv) | E18: 58 | G18: 64 | I18: 70
C19: Deckungsbeitrag (DB)
C20: fixe Kosten (Kf)
C21: Gewinn (G)
C24: Deckungsbeitragssatz DBU = | E24: = | F24: 1 | G24: [%]

Sheet 04_DB_Beispiel1_L (hidden)
C4: Deckungsbeitragsrechnung
C6: 4. Einstufige Deckungsbeitragsrechnung: Fallbeispiel
C8: Ein neu gegründetes Unternehmen beginnt seinen Geschäftsbetrieb mit der Herstellung der Produkte A, B und C.
C9: Für das I. Quartal des neuen Geschäftsjahres Geschäftsjahres liegen die nachstehend aufgeführten Daten vor.
C11: Aufgabe:
C12: Ermitteln Sie aus diesen Daten den Deckungsbeitrag DB (je Produkt und gesamt), den Deckungsbeitragssatz DBU
C13: und im Weiteren den Gewinn (als Betriebsergebnis) im I. Quartal!
C15: Produkte | D15: A | F15: B | H15: C | J15: gesamt
C16: Position | D16: EUR | E16: % | F16: EUR | G16: % | H16: EUR | I16: % | J16: EUR | K16: %
C17: Erlöse aus Umsatz (UE) | D17: 22250 | E17: 100 | F17: 24100 | G17: 100 | H17: 20960 | I17: 100 | J17: =D17+F17+H17 -> 67310 | K17: 100
C18: variable Kosten (Kv) | D18: =D17*E18/100 -> 12905 | E18: 58 | F18: =F17*G18/100 -> 15424 | G18: 64 | H18: =H17*I18/100 -> 14672 | I18: 70 | J18: =D18+F18+H18 -> 43001 | K18: =J18*100/J17 -> 63.88500966
C19: Deckungsbeitrag (DB) | D19: =D17-D18 -> 9345 | E19: 42 | F19: 8676 | G19: 36 | H19: 6288 | I19: 30 | J19: 24309 | K19: 36.11499034
C20: fixe Kosten (Kf) | J20: 21600 | K20: =J20*100/J17 -> 32.09032833
C21: Gewinn (G) | J21: =J19-J20 -> 2709 | K21: =J21*100/J17 -> 4.024662012
J22: Kontrolle | K22: =K18+K20+K21 -> 100
D23: DB * 100
C24: Deckungsbeitragssatz DBU = | E24: = | F24: =J19*100/J17 -> 36.11499034 | G24: [%]
D25: UE
C27: Datentabelle: | D27: Umsatz U | E27: UE | F27: Kv | G27: Kf | H27: DB | I27: G
D28: 0 | E28: =D28 -> 0 | F28: =D28*$K$18/100 -> 0 | G28: =$J$20 -> 21600 | H28: =D28-F28 -> 0 | I28: =D28-F28-G28 -> -21600
D29: =D28+7500 -> 7500 | E29: =D29 -> 7500 | F29: 4791.375724 | G29: =$J$20 -> 21600 | H29: 2708.624276 | I29: -18891.37572
D30: =D29+7500 -> 15000 | E30: 15000 | F30: 9582.751449 | G30: 21600 | H30: 5417.248551 | I30: -16182.75145
D31: 22500 | E31: 22500 | F31: 14374.12717 | G31: 21600 | H31: 8125.872827 | I31: -13474.12717
D32: 30000 | E32: 30000 | F32: 19165.5029 | G32: 21600 | H32: 10834.4971 | I32: -10765.5029
D33: 37500 | E33: 37500 | F33: 23956.87862 | G33: 21600 | H33: 13543.12138 | I33: -8056.878621
D34: 45000 | E34: 45000 | F34: 28748.25435 | G34: 21600 | H34: 16251.74565 | I34: -5348.254346
D35: 52500 | E35: 52500 | F35: 33539.63007 | G35: 21600 | H35: 18960.36993 | I35: -2639.63007
D36: 60000 | E36: 60000 | F36: 38331.00579 | G36: 21600 | H36: 21668.99421 | I36: 68.99420591
D37: 67500 | E37: 67500 | F37: 43122.38152 | G37: 21600 | H37: 24377.61848 | I37: 2777.618482
D38: 75000 | E38: 75000 | F38: 47913.75724 | G38: 21600 | H38: 27086.24276 | I38: 5486.242757
I40: Ein Gewinn G mit G >= 0 wird ab
I41: dem Punkt DB >= Kf erzielt!
I42: Verändern Sie über das "Drehfeld"
I43: bei den Fixkosten den Wert, um
I44: die Wirkungen der Kf - Änderung
I45: im Diagramm zu verfolgen!

Sheet 05_DB_Beispiel2_A
C4: Modul M 04: Deckungsbeitragsrechnung
C6: 5. Mehrstufige Deckungsbeitragsrechnung: Fallbeispiel
C8: Das Modell einer mehrstufigen Deckungsbeitragsrechnung - auch als Modell der stufenweisen Fix-
C9: kostendeckung bezeichnet - eignet sich im besonderen Maß für eine kurzfristige Erfolgsrechnung (KER),
C10: und zwar als wichtige Alternative zur kurzfristigen Erfolgsrechnung nach dem Vollkostenansatz in Ge-
C11: stalt der Kostenträgerzeitrechnung.
C12: Die kurzfristige Erfolgsrechnung als stufenweise Deckungsbeitragsrechnung schließt Folgendes ein:
C13: a) die Ermittlung des Deckungsbeitrages DB I (insgesamt und nach Produkten/Leistungen),
C14: b) die Ermittlung weiterer Deckungsbeiträge (DB II, DB III),
C15: c) die Ermittlung des Betriebsergebnisses und
C16: d) die Bewertung der Kostenträger auf der Grundlage der tatsächlich realisierter Deckungsbeiträge.
C18: Fallbeispiel (Fortsetzung)
C19: Ein neu gegründetes Unternehmen beginnt seinen Geschäftsbetrieb mit der Herstellung der Produkte
C20: A, B und C. Für eine kurzfristige Erfolgsrechnung liegen die nachstehend aufgeführten Daten aus der
C21: Buchführung bzw. aus der Kostenartenrechnung zu Einzelkosten, zu Umsatzerlösen sowie zu verschie-
C22: denen Fixkostengruppen vor.
C24: Position Produkte | D24: A | E24: B | F24: C
C25: Materialeinzelkosten (variable Kosten) | D25: 7210 | E25: 7115 | F25: 6325
C26: Fertigungslöhne, Bereich I (variable Kosten) | D26: 4260 | E26: 4860 | F26: 3930
C27: Fertigungslöhne, Bereich II (variable Kosten) | D27: 2740 | E27: 4120 | F27: 5670
C28: Erzeugnisfixe Kosten (Materialgemeinkosten, Teile der Fertigungsgemeinkosten, Bereich I, II) | D28: 1120 | E28: 1450 | F28: 1870
C29: Erzeugnisgruppen-Fixkosten (aus den Fertigungsgemeinkosten, Bereich I, II) | E29: 2970
C30: Unternehmensfixe Kosten (Verwaltungs- und Vertriebsgemeinkosten) | G30: 19980
C31: Umsatzerlöse lt. Buchführung | D31: 26200 | E31: 28400 | F31: 22450
C33: Aufgabe:
C34: Führen Sie auf der Grundlage dieser Daten eine stufenweise Deckungsbeitragsrechnung durch und
C35: ermitteln Sie das Betriebsergebnis für das II. Quartal des Geschäftsjahres!
C37: Position Produkte | D37: A | E37: B | F37: C | G37: gesamt | H37: Prozent
C38: Umsatzerlöse
C39: variable Kosten
C40: Deckungsbeitrag DB I
C41: Erzeugnisfixe Kosten
C42: Deckungsbeitrag DB II
C43: Erzeugnisgruppenfixe Kosten
C44: Deckungsbeitrag DB III
C45: Unternehmenfixe Kosten
C46: Betriebsergebnis (Gewinn)

Sheet 05_DB_Beispiel2_L (hidden)
C4: Deckungsbeitragsrechnung
C6: 5. Mehrstufige Deckungsbeitragsrechnung: Fallbeispiel
C8: Das Modell einer mehrstufigen Deckungsbeitragsrechnung - auch als Modell der stufenweisen Fix-
C9: kostendeckung bezeichnet - eignet sich im besonderen Maß für eine kurzfristige Erfolgsrechnung (KER),
C10: und zwar als wichtige Alternative zur kurzfristigen Erfolgsrechnung nach dem Vollkostenansatz in Ge-
C11: stalt der Kostenträgerzeitrechnung.
C12: Die kurzfristige Erfolgsrechnung als stufenweise Deckungsbeitragsrechnung schließt ein
C13: a) die Ermittlung des Deckungsbeitrages DB I (insgesamt und nach Produkten/Leistungen),
C14: b) die Ermittlung weiterer Deckungsbeiträge (DB II, DB III),
C15: c) die Ermittlung des Betriebsergebnisses und
C16: d) die Bewertung der Kostenträger auf der Grundlage der tatsächlich realisierter Deckungsbeiträge.
C18: Fallbeispiel (Fortsetzung)
C19: Ein neu gegründetes Unternehmen beginnt seinen Geschäftsbetrieb mit der Herstellung der Produkte
C20: A, B und C. Für eine kurzfristige Erfolgsrechnung liegen die nachstehend aufgeführten Daten aus der
C21: Buchführung bzw. aus der Kostenartenrechnung zu Einzelkosten, zu Umsatzerlösen sowie zu verschie-
C22: denen Fixkostengruppen vor.
C24: Position Produkte | D24: A | E24: B | F24: C
C25: Materialeinzelkosten (variable Kosten) | D25: 7210 | E25: 7115 | F25: 6325
C26: Fertigungslöhne, Bereich I (variable Kosten) | D26: 4260 | E26: 4860 | F26: 3930
C27: Fertigungslöhne, Bereich II (variable Kosten) | D27: 2740 | E27: 4120 | F27: 5670
C28: Erzeugnisfixe Kosten (Materialgemeinkosten, Teile der Fertigungsgemeinkosten, Bereich I, II) | D28: 1120 | E28: 1450 | F28: 1870
C29: Erzeugnisgruppen-Fixkosten (aus den Fertigungsgemeinkosten, Bereich I, II) | E29: 2970
C30: Unternehmensfixe Kosten (Verwaltungs- und Vertriebsgemeinkosten) | G30: 19980
C31: Umsatzerlöse lt. Buchführung | D31: 26200 | E31: 28400 | F31: 22450
C33: Aufgabe:
C34: Führen Sie auf der Grundlage dieser Daten eine stufenweise Deckungsbeitragsrechnung durch und
C35: ermitteln Sie das Betriebsergebnis für das II. Quartal des Geschäftsjahres!
C37: Position Produkte | D37: A | E37: B | F37: C | G37: gesamt | H37: Prozent
C38: Umsatzerlöse | D38: =D31 -> 26200 | E38: =E31 -> 28400 | F38: =F31 -> 22450 | G38: =SUM(D38:F38) -> 77050 | H38: 100
C39: variable Kosten | D39: =D25+D26+D27 -> 14210 | E39: =E25+E26+E27 -> 16095 | F39: 15925 | G39: =SUM(D39:F39) -> 46230 | H39: =G39*100/G38 -> 60
C40: Deckungsbeitrag DB I | D40: =D38-D39 -> 11990 | E40: =E38-E39 -> 12305 | F40: 6525 | G40: 30820 | H40: =H38-H39 -> 40
C41: Erzeugnisfixe Kosten | D41: =D28 -> 1120 | E41: =E28 -> 1450 | F41: 1870 | G41: 4440 | H41: =G41*100/G38 -> 5.762491888
C42: Deckungsbeitrag DB II | D42: =D40-D41 -> 10870 | E42: =E40-E41 -> 10855 | F42: 4655 | G42: 26380 | H42: =H40-H41 -> 34.23750811
C43: Erzeugnisgruppenfixe Kosten | E43: =E29 -> 2970 | G43: 2970 | H43: =G43*100/G38 -> 3.854639844
C44: Deckungsbeitrag DB III | D44: =D42 -> 10870 | E44: =E42+F42-E43 -> 12540 | G44: 23410 | H44: =H42-H43 -> 30.38286827
C45: Unternehmenfixe Kosten | G45: =G30 -> 19980 | H45: =G45*100/G38 -> 25.9312135
C46: Betriebsergebnis (Gewinn) | G46: =G44-G45 -> 3430 | H46: =H44-H45 -> 4.45165477
C48: Wichtig:
C49: Wenn in der Kostenträgerzeitrechnung für ein bestimmtes Produkt ein negatives Umsatzergebnis ausgewiesen
C50: wird, wäre wäre es sinnvoll, dieses Produktaus dem Leistungsprogramm des Unternehmens zu eliminieren.
C51: Wenn jedoch die stufenweise Deckungsbeitragsrechnung zeigt, dass dieses Produkt rechnerisch noch einen
C52: beachtlichen positiven Deckungsbeitrag DB III ausweist, dann ist es sinnvoll, dieses Produkt im Leistungsprogramm
C53: des Unternehmens zu belassen.

Sheet 06_DB_Beispiel3_A
C4: Modul M 04: Deckungsbeitragsrechnung
C6: 6. Engpassanalyse mit Deckungsbeitragsrechnung: Fallbeispiel
C8: Die Engpassanalyse als Aufgabengebiet des Controllings zielt darauf ab, die im Prozess der Leistungserstellung
C9: und -verwertung auftretenden Engpässe zu lokalisieren und in ihren betriebswirtschaftlichen Wirkungen zu
C10: bewerten. Ein wichtiges Instrument ist dabei die Anwendung des relativen Deckungsbeitrages.
C12: Fallbeispiel (Fortsetzung)
C13: Ein neu gegründetes Unternehmen beginnt seinen Geschäftsbetrieb mit der Herstellung der Produkte
C14: A, B und C. Alle drei Produkte benötigten im Fertigungsprozess einen Rohstoff R, der nur in einer begrenzten
C15: Menge aus dem Ausland beschafft werden kann.
C16: Folgende Daten liegen hierzu vor:
C18: Produkt/Auftrag | D18: Verkaufspreis [EUR/Stck.] | E18: Absatz-menge [Stck.] | F18: variable Stückkosten [EUR/Stck.] | G18: Rohstoff-verbrauch [kg/Stck.]
C19: Produkt A | D19: 740 | E19: 30 | F19: 470 | G19: =R_A -> 3
C20: Produkt B | D20: 440 | E20: 65 | F20: 248 | G20: 2.1 | H20: Für Absatz
C21: Produkt C | D21: 890 | E21: 25 | F21: 630 | G21: 2.8 | H21: benötigte Menge
C22: Verfügbare Rohstoffmenge [kg] | G22: 270
C24: Aufgabe:
C25: Die Aufgabe besteht nun darin, zu ermitteln, wie die begrenzt verfügbare Rohstoffmenge einzusetzen ist, damit
C26: insgesamt ein maximaler Deckungsbeitrag aus der Realisierung der Aufträge erzielt wird.
C27: Grundlage hierfür bildet die Rangfolge der Produkte nach dem Kriterium "relativer db"!
C29: Lösungstabelle 1:
C31: Produkt/Auftrag | D31: Verkaufspreis [EUR/Stck.] | E31: Absatzmenge [Stck.] | F31: variable Stückkosten [EUR/Stck.] | G31: Rohstoff-verbrauch [kg/Stck.] | H31: "kleiner" db [EUR/Stck.] | I31: relativer db [EUR/kg] | J31: Rang
C32: Produkt A | D32: =D19 -> 740 | E32: =E19 -> 30 | F32: =F19 -> 470 | G32: 3
C33: Produkt B | D33: =D20 -> 440 | E33: 65 | F33: 248 | G33: 2.1
C34: Produkt C | D34: 890 | E34: 25 | F34: 630 | G34: 2.8
C35: Verfügbare Rohstoffmenge [kg] | G35: =G22 -> 270
C38: Lösungstabelle 2:
C40: Reihenfolge Produkt/Auftrag | D40: Absatz-menge [ME] | E40: "kleiner" db [EUR/Stck.] | F40: Rohstoff-bedarf [kg] | G40: Restmenge [kg] | H40: DB gesamt [EUR] | I40: Anteil [%]
C44: Kontrolle

Sheet 06_DB_Beispiel3_L (hidden)
C4: Deckungsbeitragsrechnung
C6: 6. Engpassanalyse mit Deckungsbeitragsrechnung: Fallbeispiel
C8: Die Engpassanalyse als Aufgabengebiet des Controllings zielt darauf ab, die im Prozess der Leistungserstellung
C9: und -verwertung auftretenden Engpässe zu lokalisieren und in ihren betriebswirtschaftlichen Wirkungen zu
C10: bewerten. Ein wichtiges Instrument ist dabei die Anwendung des relativen Deckungsbeitrages.
C12: Fallbeispiel (Fortsetzung)
C13: Ein neu gegründetes Unternehmen beginnt seinen Geschäftsbetrieb mit der Herstellung der Produkte
C14: A, B und C. Alle drei Produkte benötigten im Fertigungsprozess einen Rohstoff R, der nur in einer begrenzten
C15: Menge aus dem Ausland beschafft werden kann.
C16: Folgende Daten liegen hierzu vor:
C18: Produkt/Auftrag | D18: Verkaufspreis [EUR/Stck.] | E18: Absatz-menge [Stck.] | F18: variable Stückkosten [EUR/Stck.] | G18: Rohstoff-verbrauch [kg/Stck.]
C19: Produkt A | D19: 740 | E19: 30 | F19: 470 | G19: =R_A -> 2.8
C20: Produkt B | D20: 440 | E20: 65 | F20: 248 | G20: 2.1 | H20: Für Absatz
C21: Produkt C | D21: 890 | E21: 25 | F21: 630 | G21: 2.8 | H21: benötigte Menge
C22: Verfügbare Rohstoffmenge [kg] | G22: 270 | H22: =E19*G19+E20*G20+E21*G21 -> 290.5
C24: Aufgabe:
C25: Die Aufgabe besteht nun darin, zu ermitteln, wie die begrenzt verfügbare Rohstoffmenge einzusetzen ist, damit
C26: insgesamt ein maximaler Deckungsbeitrag aus der Realisierung der Aufträge erzielt wird.
C28: Lösungstabelle 1: | H28: Ändern und Wirkungen verfolgen!
C30: Produkt/Auftrag | D30: Verkaufspreis [EUR/Stck.] | E30: Absatzmenge [Stck.] | F30: variable Stückkosten [EUR/Stck.] | G30: Rohstoff-verbrauch [kg/Stck.] | H30: "kleiner" db [EUR/Stck.] | I30: relativer db [EUR/kg] | J30: Rang
C31: Produkt A | D31: =D19 -> 740 | E31: =E19 -> 30 | F31: =F19 -> 470 | G31: 2.8 | H31: =D31-F31 -> 270 | I31: =H31/G31 -> 96.42857143 | J31: =RANK(I31,$I$31:$I$33) -> 1
C32: Produkt B | D32: =D20 -> 440 | E32: 65 | F32: 248 | G32: 2.1 | H32: =D32-F32 -> 192 | I32: =H32/G32 -> 91.42857143 | J32: =RANK(I32,$I$31:$I$33) -> 3
C33: Produkt C | D33: 890 | E33: 25 | F33: 630 | G33: 2.8 | H33: 260 | I33: 92.85714286 | J33: =RANK(I33,$I$31:$I$33) -> 2
C34: Verfügbare Rohstoffmenge [kg] | G34: =G22 -> 270
C36: Lösungstabelle 2:
C38: Reihenfolge Produkt/Auftrag | D38: Absatz-menge [ME] | E38: "kleiner" db [EUR/Stck.] | F38: Rohstoff-bedarf [kg] | G38: Restmenge [kg] | H38: DB gesamt [EUR] | I38: Anteil [%]
C39: =IF(J31=1,C31,IF(J32=1,C32,C33)) -> Produkt A | D39: =IF(J31=1,E31,IF(J32=1,E32,E33)) -> 30 | E39: =IF(J31=1,H31,IF(J32=1,H32,H33)) -> 270 | F39: =IF(J31=1,E31*G31,IF(J32=1,E32*G32,E33*G33)) -> 84 | G39: =G34-F39 -> 186 | H39: =D39*E39 -> 8100 | I39: =H39*100/H42 -> 32.19395866
C40: =IF(J31=2,C31,IF(J32=2,C32,C33)) -> Produkt C | D40: 25 | E40: 260 | F40: 70 | G40: =G39-F40 -> 116 | H40: =D40*E40 -> 6500 | I40: =H40*100/H42 -> 25.83465819
C41: =IF(J31=3,C31,IF(J32=3,C32,C33)) -> Produkt B | D41: 55 | E41: 192 | F41: 115.5 | G41: =ROUNDDOWN(Rm_2-RV_3,0) -> 0 | H41: =D41*E41 -> 10560 | I41: =H41*100/H42 -> 41.97138315
C42: Kontrolle | F42: =SUM(F39:F41) -> 269.5 | H42: =SUM(H39:H41) -> 25160 | I42: =SUM(I39:I41) -> 100

Sheet 07_DB_Beispiel4_L (hidden)
C4: Deckungsbeitragsrechnung
C6: 7. Deckungsbeitragsrechnung als Frühwarnung: Fallbeispiel
C8: Die Deckungsbeitragsrechnung kann im Rahmen der kurzfristigen Erfolgsrechnung auch als ein kurzfristig
C9: wirksames Frühwarnsystem (im Sinne des operativen Controllings) genutzt werden kann.
C10: Ein solches Frühwarnsystem basiert auf einer Vorschaurechnung zur Ermittlung einer sog. operativen Lücke.
C11: Bei dieser Rechnung wird zunächst ein erreichbarer Deckungsbeitrag lt. Auftragslage im Vorschauzeitraum
C12: ermittelt (siehe Grafik).
C13: Diesem ereichbaren Deckungsbeitrag wird ein notwendiger Deckungsbeitrag lt. Unternehmenszielen für
C14: "Gewinn" und "Fixkosten-Budget" gegenübergestellt.
C15: Ist der erreichbare DB kleiner dem notwendigen DB, ergibt sich eine "operative Lücke".
C16: Um das Entstehen einer solchen Lücke zu verhindern bzw. deren Größe zu minimieren, sind für den Vorschau-
C17: zeitraum Entscheidungen zu treffen (z. B. mehr Anstrengungen bei der Kundenakquise zwecks Umsatzerhöhung
C18: oder Maßnahmen zum Minimierung des Fixkostenblocks u. a.).
I21: 100 | K21: [TEUR]
I23: 45 | K23: [TEUR]
I25: =I21-I23 -> 55 | K25: [TEUR]
I27: =I25-I30 -> -7 | K27: [TEUR]
I30: =I34+I32 -> 62 | K30: [TEUR]
I32: 52 | K32: [TEUR]
I34: 10 | K34: [TEUR]
C42: Je eher eine derartige operative Lücke zwischen dem erreichbaren Deckungsbeitrag und dem notwendigen Deckungs-
C43: beitrag erkannt wird, desto eher können kurzfristig wirksame Steuermaßnahmen noch Ärgeres verhindern.

Sheet 07_DB_Beispiel4_A
C4: Modul M04: Deckungsbeitragsrechnung
C6: 7. Deckungsbeitragsrechnung als Frühwarnung: Fallbeispiel
C8: Die Deckungsbeitragsrechnung kann im Rahmen der kurzfristigen Erfolgsrechnung auch als ein kurzfristig
C9: wirksames Frühwarnsystem (im Sinne des operativen Controllings) genutzt werden kann.
C10: Ein solches Frühwarnsystem basiert auf einer Vorschaurechnung zur Ermittlung einer sog. operativen Lücke.
C11: Bei dieser Rechnung wird zunächst ein erreichbarer Deckungsbeitrag lt. Auftragslage im Vorschauzeitraum
C12: ermittelt (siehe Grafik).
C13: Diesem ereichbaren Deckungsbeitrag wird ein notwendiger Deckungsbeitrag lt. Unternehmenszielen für
C14: "Gewinn" und "Fixkosten-Budget" gegenübergestellt.
C15: Ist der erreichbare DB kleiner dem notwendigen DB, ergibt sich eine "operative Lücke".
C16: Um das Entstehen einer solchen Lücke zu verhindern bzw. deren Größe zu minimieren, sind für den Vorschau-
C17: zeitraum Entscheidungen zu treffen (z. B. mehr Anstrengungen bei der Kundenakquise zwecks Umsatzerhöhung
C18: oder Maßnahmen zum Minimierung des Fixkostenblocks u. a.).
I21: 100 | K21: [TEUR]
I23: 45 | K23: [TEUR]
K25: [TEUR]
K27: [TEUR]
K30: [TEUR]
I32: 52 | K32: [TEUR]
I34: 10 | K34: [TEUR]
C42: Je eher eine derartige operative Lücke zwischen dem erreichbaren Deckungsbeitrag und dem notwendigen Deckungs-
C43: beitrag erkannt wird, desto eher können kurzfristig wirksame Steuermaßnahmen noch Ärgeres verhindern.
